fUST/lending_fUST_20241102
["ID","MTS","AMOUNT","RATE_DAILY","PERIOD"]
[341162764,1730491636581,-500.0,0.00032875,4]
[341162765,1730491636606,-803.78,0.00032875,4]
[341162766,1730491636634,-500.0,0.00032875,4]
[341162767,1730491636658,-729.28,0.00032875,3]
[341162768,1730491636681,-500.0,0.00032875,4]
[341162769,1730491636702,-500.0,0.00032876,7]
[341162770,1730491636723,-818.44,0.00032876,4]
[341162771,1730491636746,-500.0,0.00032876,4]
[341162772,1730491636770,-500.0,0.00032876,4]
[341162773,1730491636792,-500.0,0.00032876,120]
[341162774,1730491636812,-500.0,0.00032876,120]
[341162775,1730491636832,-500.0,0.00032876,120]
[341162776,1730491636852,-500.0,0.00032876,120]
[341162777,1730491636872,-500.0,0.00032876,120]
[341162778,1730491636892,-500.0,0.00032876,120]
[341162779,1730491636912,-500.0,0.00032876,120]
[341162780,1730491636932,-500.0,0.00032876,120]
[341162781,1730491636955,-500.0,0.00032876,120]
[341162782,1730491636979,-1503.17346743,0.00032876,2]
[341162783,1730491637000,-522.886346,0.00032877,120]
[341162784,1730491637024,-754.47,0.00033149,4]
[341162785,1730491637048,-500.0,0.00033149,120]
[341162786,1730491637072,-220.37097281,0.00033149,4]
[341162787,1730491637096,-500.0,0.00033149,4]
[341162788,1730491637118,-803.78,0.00033149,4]
[341162789,1730491637140,-500.0,0.00033149,4]
[341162790,1730491637163,-729.28,0.00033149,3]
[341162791,1730491637183,-538.23259433,0.00033149,4]
[341162792,1730491637206,-818.44,0.0003315,4]
[341162793,1730491637228,-500.0,0.0003315,4]
[341162794,1730491637253,-151.88414461,0.00033323,2]
[341162795,1730491637277,-754.47,0.00033423,4]
[341162796,1730491637299,-593.8475064,0.00033423,120]
[341162797,1730491637320,-401.23171679,0.00033423,4]
[341162798,1730491637342,-803.78,0.00033423,4]
[341162799,1730491637362,-500.0,0.00033423,4]
[341162800,1730491637383,-729.28,0.00033423,3]
[341162801,1730491637404,-818.44,0.00033424,4]
[341162802,1730491637424,-500.0,0.00033424,4]
[341162803,1730491637446,-754.47,0.00033697,4]
[341162804,1730491637468,-803.78,0.00033697,4]
[341162805,1730491637489,-500.0,0.00033697,4]
[341162806,1730491637510,-729.28,0.00033697,3]
[341162807,1730491637530,-818.44,0.00033698,4]
[341162808,1730491637551,-500.0,0.00033698,4]
[341162809,1730491637573,-3000.0,0.000339,17]
[341162810,1730491637596,-3000.0,0.0003391,17]
[341162811,1730491637620,-3000.0,0.0003392,17]
[341162812,1730491637643,-4067.114252,0.0003393,17]
[341162813,1730491637668,-754.47,0.00033971,4]
[341162814,1730491637691,-803.78,0.00033971,4]
[341162815,1730491637713,-500.0,0.00033971,4]
[341162816,1730491637743,-729.28,0.00033971,3]
[341162817,1730491637765,-818.44,0.00033972,4]
[341162818,1730491637790,-500.0,0.00033972,4]
[341162819,1730491637810,-150.904,0.00034125,120]
[341162820,1730491637831,-754.47,0.00034245,4]
[341162821,1730491637852,-803.78,0.00034245,4]
[341162822,1730491637874,-497.9,0.00034245,4]
[341162823,1730491637895,-729.28,0.00034245,3]
[341162824,1730491637915,-818.44,0.00034246,4]
[341162825,1730491637935,-500.0,0.00034246,4]
[341162826,1730491637954,-500.0,0.00034321,5]
[341162827,1730491637974,-754.47,0.00034519,4]
[341162828,1730491637997,-803.78,0.00034519,4]
[341162829,1730491638020,-729.28,0.00034519,3]
[341162830,1730491638043,-818.44,0.0003452,4]
[341162831,1730491638067,-500.0,0.0003452,4]
[341162832,1730491638091,-4146.46915232,0.00034663,2]
[341162833,1730491638211,-754.47,0.00034793,4]
[341162834,1730491638235,-803.78,0.00034793,4]
[341162835,1730491638258,-729.28,0.00034793,3]
[341162836,1730491638280,-818.44,0.00034794,4]
[341162837,1730491638301,-500.0,0.00034794,4]
[341162838,1730491638323,-150.112233,0.000348,15]
[341162839,1730491638344,-150.112233,0.000349,14]
[341162840,1730491638366,-8207.56731066,0.00034999,2]
[341162841,1730491638387,-210.0,0.00034999,7]
[341162842,1730491638408,-155.9205799,0.00034999,7]
[341162843,1730491638428,-490.49372997,0.00034999,7]
[341162844,1730491638448,-490.0,0.00034999,7]
[341162845,1730491638468,-363.81468642,0.00034999,7]
[341162846,1730491638490,-24842.28187051,0.00035,2]
[341162912,1730491832559,-500.0,0.00030683,4]
[341162914,1730491832569,-500.0,0.00030957,4]
[341162916,1730491832582,-500.0,0.00031231,4]
[341162918,1730491832591,-500.0,0.00031505,4]
[341162920,1730491832601,-500.0,0.00031779,4]
[341162922,1730491832610,-500.0,0.00032053,4]
[341162924,1730491832620,-500.0,0.00032327,4]
[341162926,1730491832630,-500.0,0.00032601,4]
[341162928,1730491832639,-500.0,0.00032875,4]
[341162930,1730491832648,-392.164759,0.00032877,120]
[341162932,1730491832659,-500.0,0.00033148,4]
[341162934,1730491832668,-500.0,0.00033148,3]
[341162936,1730491832678,-500.0,0.00033149,4]
[341162938,1730491832688,-500.0,0.00033422,4]
[341162939,1730491832698,-500.0,0.00033422,3]
[341162940,1730491832708,-500.0,0.00033423,4]
[341162941,1730491832717,-500.0,0.00033696,4]
[341162942,1730491832727,-500.0,0.00033696,3]
[341162943,1730491832736,-535.98083972,0.00033697,4]
[341162944,1730491832745,-500.0,0.0003397,4]
[341162945,1730491832755,-500.0,0.0003397,3]
[341162946,1730491832764,-500.0,0.00034244,4]
[341162947,1730491832774,-500.0,0.00034244,3]
[341162948,1730491832783,-500.0,0.00034518,4]
[341162949,1730491832793,-500.0,0.00034518,3]
[341162950,1730491832802,-500.0,0.00034792,4]
[341162951,1730491832810,-500.0,0.00034792,3]
[341162952,1730491832820,-151.88414461,0.000349,2]
[341162953,1730491832830,-500.0,0.00034973,5]
[341162954,1730491832841,-53147.1362361,0.00035,2]
[341162972,1730491840042,-10414.68099675,0.00035,2]
[341162976,1730491840612,-4614.84317897,0.00035,2]
[341162977,1730491840624,-13826.2,0.00035,2]
[341162978,1730491840636,-503.01188397,0.00035,2]
[341162979,1730491840664,-311.66262977,0.00035,2]
[341162980,1730491841615,-11885.680775,0.00035,2]
[341162989,1730491843747,-21002.5546897,0.00035,2]
[341163014,1730491846514,-3716.31361176,0.00035,2]
[341163051,1730492079924,173.110893,0.00013973,2]
[341163052,1730492586054,179.947408,0.00013973,2]
[341163060,1730492953289,-300.0,0.00024999,2]
[341163061,1730492953314,-250.0,0.00024999,2]
[341163062,1730492953336,-17339.2391321,0.00025,2]
[341163063,1730492962133,-47863.11569376,0.00025,2]
[341163064,1730492964191,-500.0,0.00030683,4]
[341163065,1730492964212,-1453.80918122,0.00030852,3]
[341163090,1730493032684,-2632.6363263,0.00032137,2]
[341163091,1730493032702,-8451.9966629,0.00032137,2]
[341163092,1730493032720,-170.84309394,0.00032773,2]
[341163093,1730493032730,-500.0,0.00032873,4]
[341163094,1730493032741,-500.0,0.00032873,3]
[341163095,1730493032751,-174.20306587,0.00032874,4]
[341163096,1730493032762,-500.0,0.00032874,4]
[341163097,1730493032774,-500.0,0.00032874,4]
[341163098,1730493032784,-102.94334274,0.00032874,4]
[341163099,1730493032795,-397.05665726,0.00032874,4]
[341163100,1730493032805,-500.0,0.00032874,4]
[341163101,1730493032815,-500.0,0.00032874,4]
[341163102,1730493032825,-500.0,0.00032874,4]
[341163103,1730493032835,-500.0,0.00032874,4]
[341163104,1730493032844,-500.0,0.00032874,4]
[341163105,1730493032854,-500.0,0.00032874,4]
[341163106,1730493032865,-500.0,0.00032874,4]
[341163107,1730493032874,-506.14357973,0.00032874,4]
[341163108,1730493032884,-500.0,0.00032874,4]
[341163109,1730493032893,-500.0,0.00032874,4]
[341163110,1730493032903,-500.0,0.00032874,4]
[341163111,1730493032913,-502.49573189,0.00032874,4]
[341163112,1730493032922,-505.16754843,0.00032874,4]
[341163113,1730493032932,-530.0355821,0.00032874,4]
[341163114,1730493032942,-291.2498433,0.00032874,4]
[341163115,1730493032955,-500.0,0.00032874,4]
[341163116,1730493032966,-294.123569,0.00032877,120]
[341163117,1730493032977,-500.0,0.00033147,4]
[341163118,1730493032991,-500.0,0.00033147,3]
[341163119,1730493033001,-180.68415125,0.00033278,30]
[341163125,1730493038727,-820.28584875,0.00033278,30]
[341163126,1730493038738,-500.0,0.00033421,4]
[341163127,1730493038748,-125.47922135,0.00033421,4]
[341163128,1730493038872,-308.40581086,0.00033421,4]
[341163129,1730493038885,-66.11496779,0.00033421,4]
[341163130,1730493038894,-500.0,0.00033421,4]
[341163131,1730493038904,-194.61508079,0.00033421,4]
[341163132,1730493038916,-305.38491921,0.00033421,4]
[341163133,1730493038927,-271.77081097,0.00033421,4]
[341163134,1730493038936,-500.0,0.00033421,4]
[341163135,1730493038946,-500.0,0.00033421,3]
[341163136,1730493038957,-500.0,0.00033695,4]
[341163137,1730493038966,-500.0,0.00033695,3]
[341163138,1730493038976,-150.0,0.000339,17]
[341163139,1730493038985,-500.0,0.00033969,4]
[341163140,1730493038994,-334.29028195,0.00033969,3]
[341163141,1730493039004,-430.29624916,0.00034243,4]
[341163142,1730493039014,-1079.77782209,0.00034895,2]
[341163143,1730493039023,-3317.57015617,0.000349,2]
[341163144,1730493039035,-3913.15550938,0.000349,2]
[341163145,1730493039044,-19.17928518,0.00034973,5]
[341163197,1730493046727,-500.0,0.00033421,4]
[341163199,1730493046737,-500.0,0.00033695,4]
[341163201,1730493046747,-500.0,0.00033969,4]
[341163203,1730493046758,-500.0,0.00034243,4]
[341163205,1730493046771,-500.0,0.00034517,4]
[341163206,1730493046781,-298.869392,0.00034791,4]
[341163207,1730493046794,-201.130608,0.00034791,4]
[341163209,1730493046803,-480.82071482,0.00034973,5]
[341163211,1730493046813,-207.03623904,0.00034999,7]
[341163213,1730493046823,-500.0,0.00034999,4]
[341163215,1730493046832,-500.0,0.00034999,4]
[341163217,1730493046841,-500.0,0.00034999,2]
[341163219,1730493046851,-500.0,0.00034999,2]
[341163221,1730493046860,-500.0,0.00034999,2]
[341163223,1730493046870,-154.52983653,0.00034999,2]
[341163225,1730493046880,-183.8366485,0.00034999,2]
[341163227,1730493046889,-237.97452619,0.00034999,2]
[341163229,1730493046899,-1563.61391148,0.00034999,2]
[341163231,1730493046908,-1707.18217647,0.00035,2]
[341163233,1730493046921,-16283.68638824,0.00035,2]
[341163258,1730493235468,173.21312,0.00013973,2]
[341163262,1730493820419,169.155379,0.00013973,2]
[341163264,1730493954181,-189.858,0.00022971,2]
[341163265,1730493954201,-158.77864074,0.00032773,2]
[341163266,1730493954223,-218.88,0.00032863,3]
[341163267,1730493954244,-185.55067013,0.00032863,3]
[341163268,1730494044201,-1386.68954985,0.00032772,2]
[341163269,1730494044222,-158.77864074,0.00032773,2]
[341163270,1730494044245,-471.09,0.00032863,3]
[341163271,1730494044265,-307.0,0.0003287,2]
[341163272,1730494044287,-250.0,0.0003287,2]
[341163273,1730494044309,-500.0,0.00032871,4]
[341163274,1730494044330,-500.0,0.00032871,4]
[341163275,1730494044353,-500.0,0.00032871,4]
[341163276,1730494044375,-500.0,0.00032871,4]
[341163277,1730494044395,-500.0,0.00032871,4]
[341163278,1730494044418,-500.0,0.00032871,4]
[341163279,1730494044445,-500.0,0.00032871,4]
[341163280,1730494044466,-500.0,0.00032871,4]
[341163281,1730494044488,-500.0,0.00032871,4]
[341163282,1730494044509,-500.0,0.00032871,4]
[341163283,1730494044531,-500.0,0.00032871,3]
[341163284,1730494044552,-500.0,0.00032871,4]
[341163285,1730494044572,-500.0,0.00032871,4]
[341163286,1730494044592,-500.0,0.00032871,4]
[341163287,1730494044612,-500.0,0.00032871,4]
[341163288,1730494044632,-500.0,0.00032871,4]
[341163289,1730494044652,-500.0,0.00032871,4]
[341163290,1730494044672,-500.0,0.00032871,4]
[341163291,1730494044692,-500.0,0.00032871,4]
[341163292,1730494044713,-161.0893907,0.00032871,4]
[341163293,1730494044733,-500.0,0.00032871,4]
[341163294,1730494044753,-500.0,0.00032871,4]
[341163295,1730494044773,-500.0,0.00032871,4]
[341163296,1730494044792,-506.62385232,0.00032871,4]
[341163297,1730494044812,-200.0,0.00032871,4]
[341163298,1730494044832,-500.0,0.00032871,4]
[341163299,1730494044970,-500.0,0.00032872,4]
[341163300,1730494044994,-500.0,0.00032872,4]
[341163301,1730494045016,-487.62164689,0.00032872,4]
[341163302,1730494048100,-500.0,0.00032871,4]
[341163303,1730494048120,-12.37835311,0.00032872,4]
[341163304,1730494048142,-400.35948565,0.00032872,4]
[341163332,1730494231878,-1213.35335611,0.00032772,2]
[341163333,1730494231888,-437.76,0.00032863,3]
[341163334,1730494231898,-500.0,0.00032871,4]
[341163335,1730494231908,-500.0,0.00032871,4]
[341163336,1730494231918,-500.0,0.00032871,4]
[341163337,1730494231929,-500.0,0.00032871,4]
[341163338,1730494231939,-500.0,0.00032871,4]
[341163339,1730494231950,-500.0,0.00032871,4]
[341163340,1730494231959,-500.0,0.00032871,4]
[341163341,1730494231968,-601.57128886,0.00032871,4]
[341163342,1730494231978,-500.0,0.00032871,4]
[341163343,1730494231989,-500.0,0.00032871,4]
[341163344,1730494231999,-500.0,0.00032871,4]
[341163345,1730494232008,-500.0,0.00032871,4]
[341163346,1730494232018,-500.0,0.00032871,4]
[341163347,1730494232028,-500.0,0.00032871,4]
[341163348,1730494232038,-500.0,0.00032871,4]
[341163349,1730494232048,-500.0,0.00032871,4]
[341163350,1730494232057,-500.0,0.00032871,4]
[341163351,1730494232067,-233.65,0.00032871,4]
[341163352,1730494232179,-500.0,0.00032871,4]
[341163353,1730494232190,-500.0,0.00032871,4]
[341163354,1730494232205,-500.0,0.00032871,4]
[341163355,1730494232220,-500.0,0.00032871,4]
[341163356,1730494232230,-500.0,0.00032871,3]
[341163357,1730494232242,-500.0,0.00032871,4]
[341163358,1730494232252,-500.0,0.00032871,4]
[341163359,1730494232261,-500.0,0.00032871,4]
[341163360,1730494232272,-500.0,0.00032871,4]
[341163361,1730494232283,-475.0,0.00032871,4]
[341163362,1730494232294,-598.18661494,0.00032871,4]
[341163363,1730494232304,-500.0,0.00032871,4]
[341163364,1730494232315,-500.0,0.00032871,4]
[341163365,1730494232325,-99.64051435,0.00032872,4]
[341163366,1730494232335,-500.0,0.00032872,4]
[341163367,1730494232345,-500.0,0.00032872,4]
[341163368,1730494232355,-335.77240916,0.00032872,4]
[341163393,1730494237983,-505.88502332,0.00032871,4]
[341163394,1730494237994,-164.22759084,0.00032872,4]
[341163395,1730494238004,-509.12937042,0.00032872,4]
[341163396,1730494238016,-500.0,0.00032872,4]
[341163397,1730494238028,-500.0,0.00032872,4]
[341163398,1730494238037,-500.0,0.00032872,4]
[341163399,1730494238046,-500.0,0.00032872,4]
[341163400,1730494238056,-500.0,0.00032872,4]
[341163401,1730494238065,-500.0,0.00032872,4]
[341163402,1730494238075,-500.0,0.00032872,4]
[341163403,1730494238086,-500.0,0.00032872,4]
[341163404,1730494238096,-500.0,0.00032872,4]
[341163405,1730494238106,-500.0,0.00032872,4]
[341163406,1730494238116,-500.0,0.00032872,4]
[341163407,1730494238126,-500.0,0.00032872,4]
[341163408,1730494238136,-500.0,0.00032872,4]
[341163409,1730494238146,-500.0,0.00032872,4]
[341163410,1730494238157,-500.0,0.00032872,4]
[341163411,1730494238167,-500.0,0.00032872,4]
[341163412,1730494238177,-500.0,0.00032872,4]
[341163413,1730494238187,-500.0,0.00032872,4]
[341163414,1730494238197,-500.0,0.00032872,4]
[341163415,1730494238208,-500.0,0.00032872,4]
[341163416,1730494238219,-500.0,0.00032872,2]
[341163417,1730494238229,-500.0,0.00032872,4]
[341163418,1730494238242,-500.0,0.00032872,4]
[341163419,1730494238254,-500.0,0.00032872,4]
[341163420,1730494238266,-500.0,0.00032872,4]
[341163421,1730494238279,-500.0,0.00032872,4]
[341163422,1730494238289,-1000.0,0.00032872,4]
[341163423,1730494238299,-500.0,0.00032872,4]
[341163424,1730494238308,-500.0,0.00032872,4]
[341163425,1730494238319,-500.0,0.00032872,4]
[341163426,1730494238329,-203.88502735,0.00032872,4]
[341163427,1730494238343,-296.11497265,0.00032872,4]
[341163428,1730494238355,-500.0,0.00032872,4]
[341163429,1730494238366,-500.0,0.00032872,4]
[341163430,1730494238379,-542.78913435,0.00032872,4]
[341163431,1730494238388,-500.0,0.00032872,4]
[341163432,1730494238398,-500.0,0.00032872,4]
[341163433,1730494238407,-500.0,0.00032872,4]
[341163434,1730494238420,-500.0,0.00032872,4]
[341163435,1730494238430,-500.0,0.00032872,4]
[341163436,1730494238440,-500.0,0.00032872,4]
[341163437,1730494238453,-500.0,0.00032872,4]
[341163438,1730494238465,-402.69528356,0.00032872,4]
[341163439,1730494238476,-500.0,0.00032872,4]
[341163440,1730494238486,-500.0,0.00032872,4]
[341163441,1730494238496,-500.0,0.00032872,4]
[341163442,1730494238507,-500.0,0.00032872,4]
[341163443,1730494238516,-646.84165336,0.00032872,4]
[341163444,1730494238526,-500.0,0.00032872,4]
[341163445,1730494238535,-506.98873992,0.00032872,4]
[341163446,1730494238545,-500.0,0.00032872,4]
[341163447,1730494238555,-500.0,0.00032872,4]
[341163448,1730494238564,-500.0,0.00032872,4]
[341163449,1730494238573,-500.0,0.00032872,4]
[341163450,1730494238582,-500.0,0.00032872,4]
[341163451,1730494238592,-500.0,0.00032872,4]
[341163452,1730494238601,-330.17552206,0.00032872,4]
[341163453,1730494238611,-500.0,0.00032872,4]
[341163454,1730494238624,-500.0,0.00032872,4]
[341163455,1730494238638,-500.0,0.00032872,4]
[341163456,1730494238648,-500.0,0.00032872,4]
[341163457,1730494238658,-500.0,0.00032872,4]
[341163458,1730494238669,-500.0,0.00032872,4]
[341163459,1730494238679,-500.0,0.00032872,4]
[341163460,1730494238688,-500.0,0.00032872,4]
[341163461,1730494238698,-500.0,0.00032872,4]
[341163462,1730494238708,-500.0,0.00032872,4]
[341163463,1730494238718,-207.03623905,0.00032872,7]
[341163464,1730494238728,-500.0,0.00032873,4]
[341163465,1730494238740,-500.0,0.00032873,4]
[341163466,1730494238749,-500.0,0.00032873,4]
[341163467,1730494238758,-503.81750388,0.00032873,4]
[341163468,1730494238767,-500.0,0.00032873,4]
[341163469,1730494238776,-500.0,0.00032873,4]
[341163470,1730494238785,-500.0,0.00032873,4]
[341163471,1730494238795,-500.0,0.00032873,4]
[341163472,1730494238804,-500.0,0.00032873,4]
[341163473,1730494238813,-637.21443188,0.00032873,4]
[341163474,1730494238822,-500.0,0.00032873,4]
[341163475,1730494238831,-645.18,0.00032873,4]
[341163476,1730494238840,-500.0,0.00032873,4]
[341163477,1730494238852,-500.0,0.00032873,4]
[341163478,1730494238865,-500.0,0.00032873,4]
[341163479,1730494238876,-500.0,0.00032873,4]
[341163480,1730494238887,-500.0,0.00032873,4]
[341163481,1730494238896,-300.0,0.00032873,4]
[341163482,1730494238905,-500.0,0.00032873,4]
[341163483,1730494238915,-500.0,0.00032873,4]
[341163484,1730494238925,-500.0,0.00032873,4]
[341163485,1730494238935,-500.0,0.00032873,4]
[341163486,1730494238944,-500.0,0.00032873,4]
[341163487,1730494238955,-505.74164732,0.00032873,4]
[341163488,1730494238965,-500.0,0.00032873,4]
[341163489,1730494238975,-571.22,0.00032873,4]
[341163490,1730494238985,-217.9930492,0.00032873,4]
[341163491,1730494238995,-500.0,0.00032873,4]
[341163492,1730494239004,-500.0,0.00032873,4]
[341163493,1730494239014,-500.0,0.00032873,4]
[341163494,1730494239023,-506.86388507,0.00032873,4]
[341163495,1730494239033,-513.71253298,0.00032873,4]
[341163496,1730494239042,-500.0,0.00032873,4]
[341163497,1730494239051,-500.0,0.00032873,4]
[341163498,1730494239060,-500.0,0.00032873,4]
[341163499,1730494239070,-500.0,0.00032873,4]
[341163500,1730494239086,-325.65663081,0.00032873,4]
[341163501,1730494239099,-500.0,0.00032873,4]
[341163502,1730494239112,-231.61103026,0.00032873,4]
[341163503,1730494239199,-268.38896974,0.00032873,4]
[341163504,1730494239211,-500.0,0.00032873,4]
[341163506,1730494239221,-500.0,0.00032873,4]
[341163507,1730494239233,-504.59216936,0.00032873,4]
[341163508,1730494239248,-500.0,0.00032873,4]
[341163509,1730494239262,-500.0,0.00032873,4]
[341163511,1730494239273,-500.0,0.00032873,4]
[341163513,1730494239285,-500.0,0.00032873,4]
[341163515,1730494239295,-604.48571884,0.00032873,4]
[341163517,1730494239305,-500.0,0.00032873,4]
[341163518,1730494239320,-498.97445574,0.00032873,4]
[341163520,1730494239331,-500.0,0.00032873,4]
[341163522,1730494239344,-500.0,0.00032873,4]
[341163524,1730494239354,-500.0,0.00032873,4]
[341163525,1730494239367,-500.0,0.00032873,4]
[341163526,1730494239379,-500.0,0.00032873,4]
[341163527,1730494239391,-500.0,0.00032873,4]
[341163528,1730494239402,-500.0,0.00032873,4]
[341163529,1730494239412,-500.0,0.00032873,4]
[341163530,1730494239423,-500.0,0.00032873,4]
[341163531,1730494239434,-500.0,0.00032873,4]
[341163532,1730494239444,-500.0,0.00032873,4]
[341163533,1730494239456,-500.0,0.00032873,4]
[341163534,1730494239467,-500.0,0.00032873,4]
[341163535,1730494239478,-500.0,0.00032873,4]
[341163536,1730494239489,-500.0,0.00032873,4]
[341163537,1730494239500,-500.0,0.00032873,4]
[341163538,1730494239513,-500.0,0.00032873,4]
[341163539,1730494239525,-500.0,0.00032873,4]
[341163540,1730494239535,-500.0,0.00032873,4]
[341163541,1730494239546,-500.0,0.00032873,4]
[341163542,1730494239558,-500.0,0.00032873,4]
[341163543,1730494239569,-500.0,0.00032873,4]
[341163544,1730494239581,-500.0,0.00032873,4]
[341163545,1730494239591,-500.0,0.00032873,4]
[341163546,1730494239601,-500.0,0.00032873,4]
[341163548,1730494239611,-500.0,0.00032873,4]
[341163549,1730494239620,-500.0,0.00032873,4]
[341163552,1730494239632,-500.0,0.00032873,4]
[341163554,1730494239643,-500.0,0.00032873,4]
[341163555,1730494239653,-735.7634954,0.00032873,4]
[341163557,1730494239663,-500.0,0.00032873,4]
[341163560,1730494239674,-500.0,0.00032873,4]
[341163562,1730494239685,-500.0,0.00032873,4]
[341163564,1730494239695,-500.0,0.00032873,4]
[341163567,1730494239706,-500.0,0.00032873,4]
[341163570,1730494239729,-500.0,0.00032873,4]
[341163572,1730494239741,-500.0,0.00032873,4]
[341163574,1730494239755,-500.0,0.00032873,4]
[341163576,1730494239767,-500.86741141,0.00032873,4]
[341163578,1730494239777,-500.0,0.00032873,4]
[341163580,1730494239789,-500.0,0.00032873,4]
[341163583,1730494239801,-500.0,0.00032873,4]
[341163585,1730494239813,-500.0,0.00032873,4]
[341163587,1730494239826,-497.27298874,0.00032873,4]
[341163590,1730494239839,-500.0,0.00032873,4]
[341163592,1730494239852,-506.71418855,0.00032873,4]
[341163595,1730494239865,-562.04895099,0.00032873,4]
[341163597,1730494239879,-500.0,0.00032873,4]
[341163599,1730494239890,-500.0,0.00032873,4]
[341163600,1730494239901,-500.0,0.00032873,4]
[341163601,1730494239912,-500.0,0.00032873,4]
[341163602,1730494239922,-500.0,0.00032873,4]
[341163603,1730494239933,-377.97250989,0.00032873,4]
[341163604,1730494239944,-500.0,0.00032873,4]
[341163605,1730494239955,-500.0,0.00032873,4]
[341163606,1730494239965,-500.0,0.00032873,4]
[341163607,1730494239976,-500.0,0.00032873,4]
[341163608,1730494239986,-500.0,0.00032873,4]
[341163609,1730494239998,-500.0,0.00032873,4]
[341163610,1730494240010,-500.0,0.00032873,4]
[341163611,1730494240023,-500.0,0.00032873,4]
[341163612,1730494240034,-500.0,0.00032873,4]
[341163613,1730494240046,-500.0,0.00032873,4]
[341163614,1730494240058,-500.0,0.00032873,4]
[341163615,1730494240070,-220.592676,0.00032877,120]
[341163616,1730494240080,-500.0,0.00033008,5]
[341163617,1730494240090,-500.0,0.00033145,4]
[341163618,1730494240101,-500.0,0.00033145,4]
[341163619,1730494240113,-500.0,0.00033145,4]
[341163620,1730494240125,-500.0,0.00033145,4]
[341163621,1730494240136,-500.0,0.00033145,4]
[341163622,1730494240147,-500.0,0.00033145,3]
[341163623,1730494240158,-500.0,0.00033146,4]
[341163624,1730494240170,-500.0,0.00033146,4]
[341163625,1730494240182,-500.0,0.00033146,4]
[341163626,1730494240195,-500.0,0.00033146,4]
[341163627,1730494240205,-500.0,0.00033146,4]
[341163628,1730494240216,-500.0,0.00033146,4]
[341163629,1730494240226,-500.0,0.00033146,4]
[341163630,1730494240236,-500.0,0.00033146,4]
[341163631,1730494240251,-500.0,0.00033146,4]
[341163632,1730494240261,-500.0,0.00033146,4]
[341163633,1730494240271,-500.0,0.00033146,4]
[341163634,1730494240283,-500.0,0.00033146,4]
[341163635,1730494240293,-500.0,0.00033146,4]
[341163636,1730494240303,-500.0,0.00033146,4]
[341163637,1730494240313,-500.0,0.00033146,4]
[341163638,1730494240327,-500.0,0.00033146,4]
[341163639,1730494240338,-500.0,0.00033147,4]
[341163640,1730494240349,-500.0,0.00033147,4]
[341163641,1730494240360,-356.66,0.00033147,4]
[341163642,1730494240372,-500.0,0.00033147,4]
[341163643,1730494240385,-500.0,0.00033147,4]
[341163644,1730494240395,-500.0,0.00033147,4]
[341163645,1730494240407,-500.0,0.00033147,4]
[341163646,1730494240417,-500.0,0.00033147,4]
[341163647,1730494240538,-500.0,0.00033147,4]
[341163648,1730494240549,-500.0,0.00033147,4]
[341163649,1730494240559,-500.0,0.00033147,4]